fUST/lending_fUST_20250309
["ID","MTS","AMOUNT","RATE_DAILY","PERIOD"]
[355712251,1741495844148,-151.0,0.00049482,120]
[355712253,1741495844158,-151.0,0.00049482,120]
[355712255,1741495844168,-151.0,0.00049482,120]
[355712258,1741495844178,-151.0,0.00049482,120]
[355712260,1741495844188,-151.0,0.00049482,120]
[355712261,1741495844200,-151.0,0.00049482,120]
[355712264,1741495844211,-151.0,0.00049482,120]
[355712266,1741495844220,-151.0,0.00049482,120]
[355712268,1741495844230,-175.885705,0.00049482,120]
[355712270,1741495844241,-151.0,0.00049482,120]
[355712271,1741495844251,-151.0,0.00049482,120]
[355712273,1741495844260,-151.0,0.00049482,120]
[355712275,1741495844270,-151.0,0.00049482,120]
[355712278,1741495844282,-151.0,0.00049482,120]
[355712280,1741495844293,-254.410923,0.00049482,120]
[355712282,1741495844308,-539.903212,0.00049482,120]
[355712284,1741495844318,-539.903212,0.00049482,120]
[355712286,1741495844327,-539.903212,0.00049482,120]
[355712287,1741495844337,-539.903212,0.00049482,120]
[355712288,1741495844347,-539.903212,0.00049482,120]
[355712289,1741495844356,-539.903212,0.00049482,120]
[355712290,1741495844366,-539.903212,0.00049482,120]
[355712291,1741495844376,-539.903212,0.00049482,120]
[355712292,1741495844386,-151.0,0.00049482,120]
[355712293,1741495844396,-151.0,0.00049482,120]
[355712294,1741495844406,-151.0,0.00049482,120]
[355712295,1741495844415,-191.31874,0.00049482,120]
[355712296,1741495844427,-151.0,0.00049482,120]
[355712297,1741495844436,-151.0,0.00049482,120]
[355712298,1741495844446,-151.0,0.00049482,120]
[355712299,1741495844456,-151.0,0.00049482,120]
[355712300,1741495844466,-151.0,0.00049482,120]
[355712301,1741495844476,-281.856961,0.00049482,120]
[355712302,1741495844486,-281.856961,0.00049482,120]
[355712303,1741495844496,-281.856961,0.00049482,120]
[355712304,1741495844506,-281.856961,0.00049482,120]
[355712305,1741495844516,-281.856961,0.00049482,120]
[355712306,1741495844525,-281.856961,0.00049482,120]
[355712307,1741495844535,-281.856961,0.00049482,120]
[355712308,1741495844544,-281.856961,0.00049482,120]
[355712309,1741495844554,-281.856961,0.00049482,120]
[355712310,1741495844564,-281.856961,0.00049482,120]
[355712311,1741495844574,-641.450401,0.00049482,120]
[355712312,1741495844584,-641.450401,0.00049482,120]
[355712313,1741495844595,-641.450401,0.00049482,120]
[355712315,1741495844604,-641.450401,0.00049482,120]
[355712317,1741495844615,-641.450401,0.00049482,120]
[355712319,1741495844625,-641.450401,0.00049482,120]
[355712321,1741495844635,-641.450401,0.00049482,120]
[355712323,1741495844645,-641.450401,0.00049482,120]
[355712325,1741495844655,-641.450401,0.00049482,120]
[355712327,1741495844665,-641.450401,0.00049482,120]
[355712329,1741495844674,-103172.98247861,0.00049483,30]
[355712331,1741495844683,-103172.98247861,0.00049483,30]
[355712333,1741495844693,-44498.25554247,0.00049483,30]
[355712335,1741495844702,-138500.87552985,0.00049483,30]
[355712337,1741495844712,-138500.87552985,0.00049483,30]
[355712339,1741495844722,-324.85616653,0.00049483,30]
[355712341,1741495844731,-324.85616653,0.00049483,30]
[355712343,1741495844741,-1000.0,0.00049485,6]
[355712345,1741495844750,-500.0,0.00049493,2]
[355712347,1741495844759,-150.57,0.00049493,2]
[355712348,1741495844769,-150.57,0.00049493,2]
[355712350,1741495844779,-207.36139057,0.00049493,2]
[355712351,1741495844789,-150.0,0.000495,2]
[355712352,1741495844919,-300.0,0.000495,27]
[355712353,1741495844930,-250.0,0.00049521,3]
[355712354,1741495844940,-500.0,0.00049521,2]
[355712355,1741495844950,-150.57,0.00049521,2]
[355712356,1741495844960,-251.4276889,0.00049521,2]
[355712357,1741495844970,-200.0,0.00049548,120]
[355712358,1741495844980,-500.0,0.00049548,2]
[355712359,1741495844989,-151.68134365,0.00049548,2]
[355712360,1741495844999,-500.0,0.00049576,2]
[355712361,1741495845009,-44498.25554247,0.00049587,30]
[355712362,1741495845019,-500.0,0.00049603,2]
[355712363,1741495845029,-1000.0,0.00049622,6]
[355712364,1741495845039,-500.0,0.0004963,2]
[355712365,1741495845049,-671.3095,0.0004965,60]
[355712366,1741495845058,-500.0,0.00049658,2]
[355712367,1741495845068,-500.0,0.00049685,2]
[355712368,1741495845077,-500.0,0.00049713,2]
[355712369,1741495845086,-500.0,0.0004974,2]
[355712370,1741495845096,-1000.0,0.00049759,6]
[355712371,1741495845106,-500.0,0.00049767,2]
[355712372,1741495845115,-2000.0,0.00049789,4]
[355712373,1741495845125,-500.0,0.00049795,2]
[355712374,1741495845135,-500.0,0.00049822,2]
[355712375,1741495845144,-500.0,0.0004985,2]
[355712377,1741495845154,-200.0,0.00049857,120]
[355712378,1741495845164,-500.0,0.00049877,2]
[355712380,1741495845174,-1000.0,0.00049896,6]
[355712381,1741495845183,-324.2,0.00049899,30]
[355712382,1741495845194,-500.0,0.00049904,2]
[355712383,1741495845206,-200.0,0.00049905,120]
[355712384,1741495845215,-500.0,0.00049932,2]
[355712385,1741495845224,-765.05321936,0.00049959,2]
[355712386,1741495845233,-150.0,0.00049973,10]
[355712387,1741495845245,-243.807185,0.00049999,120]
[355712388,1741495845254,-243.807185,0.00049999,120]
[355712389,1741495845264,-151.0,0.00049999,120]
[355712390,1741495845274,-151.0,0.00049999,120]
[355712391,1741495845284,-151.0,0.00049999,120]
[355712392,1741495845293,-233.451027,0.00049999,120]
[355712393,1741495845302,-290.739548,0.00049999,120]
[355712394,1741495845311,-233.451027,0.00049999,120]
[355712395,1741495845321,-290.739548,0.00049999,120]
[355712396,1741495845331,-441.989868,0.00049999,30]
[355712397,1741495845341,-441.989868,0.00049999,30]
[355712398,1741495845350,-152.541252,0.00049999,120]
[355712399,1741495845359,-152.541252,0.00049999,120]
[355712400,1741495845370,-359.546202,0.00049999,120]
[355712401,1741495845379,-815.6068,0.00049999,120]
[355712402,1741495845390,-815.6068,0.00049999,120]
[355712403,1741495845400,-151.0,0.00049999,120]
[355712404,1741495845410,-1053.954777,0.00049999,120]
[355712405,1741495845420,-1053.95476813,0.00049999,120]
[355712406,1741495845430,-444.05478,0.00049999,120]
[355712407,1741495845439,-444.054773,0.00049999,120]
[355712408,1741495845449,-843.570749,0.00049999,120]
[355712409,1741495845459,-843.57074294,0.00049999,120]
[355712410,1741495845468,-403.288954,0.00049999,120]
[355712411,1741495845477,-403.288955,0.00049999,120]
[355712412,1741495845488,-214780.98465301,0.0005,120]
[355712413,1741495845497,-20543.90007338,0.0005,120]
[355712414,1741495845507,-327.0,0.0005,120]
[355712415,1741495845517,-243.807185,0.0005,120]
[355712416,1741495845526,-243.807185,0.0005,120]
[355712417,1741495845536,-151.0,0.0005,120]
[355712418,1741495845545,-151.0,0.0005,120]
[355712419,1741495845555,-233.451027,0.0005,120]
[355712420,1741495845564,-290.739548,0.0005,120]
[355712421,1741495845573,-233.451029,0.0005,120]
[355712422,1741495845583,-290.739548,0.0005,120]
[355712423,1741495845592,-441.989868,0.0005,30]
[355712424,1741495845602,-441.989871,0.0005,30]
[355712425,1741495845611,-152.541252,0.0005,120]
[355712426,1741495845621,-152.541252,0.0005,120]
[355712427,1741495845630,-359.546202,0.0005,120]
[355712428,1741495845640,-815.6068,0.0005,120]
[355712429,1741495845650,-815.606801,0.0005,120]
[355712430,1741495845660,-151.0,0.0005,120]
[355712431,1741495845670,-243.315573,0.0005,120]
[355712432,1741495845679,-243.315573,0.0005,120]
[355712433,1741495845688,-10997.05992257,0.0005,15]
[355712434,1741495845698,-151.0,0.0005,120]
[355712435,1741495845707,-1872.61571,0.0005,120]
[355712436,1741495845717,-1872.61571,0.0005,120]
[355712437,1741495845726,-283.326254,0.0005,120]
[355712438,1741495845735,-185.427371,0.0005,120]
[355712439,1741495845744,-185.427371,0.0005,120]
[355712440,1741495845753,-172.289373,0.0005,120]
[355712441,1741495845763,-151.0,0.0005,120]
[355712442,1741495845772,-539.903212,0.0005,120]
[355712443,1741495845791,-539.903212,0.0005,120]
[355712444,1741495845804,-1000.0,0.0005,120]
[355712445,1741495845814,-151.0,0.0005,120]
[355712446,1741495845823,-281.856961,0.0005,120]
[355712447,1741495845834,-281.856964,0.0005,120]
[355712448,1741495845844,-641.450401,0.0005,120]
[355712449,1741495845854,-641.450393,0.0005,120]
[355712450,1741495845864,-243.807185,0.00050001,120]
[355712451,1741495845875,-243.807185,0.00050001,120]
[355712452,1741495845885,-151.0,0.00050001,120]
[355712453,1741495845895,-290.739548,0.00050003,120]
[355712454,1741495845906,-290.739558,0.00050003,120]
[355712455,1741495845916,-243.315573,0.00050024,120]
[355712456,1741495845926,-243.315573,0.00050024,120]
[355712457,1741495845935,-151.0,0.00050024,120]
[355712458,1741495845946,-1872.61571,0.00050024,120]
[355712459,1741495845955,-1872.61571,0.00050024,120]
[355712460,1741495845965,-539.903212,0.00050024,120]
[355712461,1741495845975,-539.903212,0.00050024,120]
[355712462,1741495845984,-152.541252,0.00050028,120]
[355712463,1741495845995,-152.541248,0.00050028,120]
[355712464,1741495846004,-359.546202,0.00050028,120]
[355712465,1741495846014,-359.546207,0.00050028,120]
[355712466,1741495846024,-1000.0,0.00050033,6]
[355712467,1741495846034,-353.35418894,0.00050068,3]
[355712469,1741495846043,-185.427371,0.00050106,120]
[355712470,1741495846053,-185.427371,0.00050106,120]
[355712472,1741495846063,-151.0,0.00050106,120]
[355712474,1741495846073,-151.0,0.00050107,120]
[355712475,1741495846082,-2000.0,0.00050107,120]
[355712476,1741495846091,-150.0,0.00050107,2]
[355712477,1741495846100,-407.45196443,0.00050107,2]
[355712478,1741495846110,-17044.13313798,0.00050107,120]
[355712479,1741495846120,-3013.93331575,0.00050107,2]
[355712480,1741495846130,-223.28777618,0.00050107,120]
[355712481,1741495846139,-1080.80153468,0.00050107,120]
[355712482,1741495846149,-1195.94364035,0.00050107,30]
[355712483,1741495846159,-10000.0,0.00050107,30]
[355712484,1741495846170,-9862.64346477,0.00050107,20]
[355712485,1741495846180,-94703.66162102,0.00050107,30]
[355712486,1741495846190,-5596.61487014,0.00050107,2]
[355712487,1741495846204,-9353.96601874,0.00050107,2]
[355712488,1741495846213,-150.0,0.00050107,2]
[355712489,1741495846223,-20000.0,0.00050107,30]
[355712490,1741495846235,-1801.0,0.00050107,2]
[355712491,1741495846244,-18766.66597774,0.00050107,120]
[355712492,1741495846254,-6054.0,0.00050107,120]
[355712493,1741495846264,-162.18735219,0.00050107,120]
[355712494,1741495846275,-151.94466649,0.00050107,120]
[355712495,1741495846286,-155.73795771,0.00050107,120]
[355712496,1741495846296,-4911.03346985,0.00050107,30]
[355712497,1741495846306,-1132.4007688,0.00050107,35]
[355712498,1741495846316,-194.9,0.00050107,30]
[355712499,1741495846325,-200.0,0.00050107,30]
[355712500,1741495846335,-200.0,0.00050107,30]
[355712501,1741495846345,-200.7,0.00050107,30]
[355712502,1741495846355,-5177.26456946,0.00050107,120]
[355712503,1741495846364,-167.900701,0.00050151,2]
[355712504,1741495846374,-1000.0,0.0005017,6]
[355712505,1741495846384,-1000.0,0.00050307,6]
[355712506,1741495846393,-1000.0,0.00050444,6]
[355712507,1741495846403,-228.39177918,0.00050521,10]
[355712508,1741495846413,-1000.0,0.00050581,6]
[355712509,1741495846424,-1000.0,0.00050752,10]
[355712510,1741495846434,-1000.0,0.00050752,10]
[355712511,1741495846444,-160.0,0.00050978,5]
[355712512,1741495846453,-300.0,0.00051,27]
[355712513,1741495846463,-500.20226959,0.00051152,10]
[355712514,1741495846473,-500.0,0.00051152,10]
[355712515,1741495846483,-501.79884756,0.00051152,10]
[355712516,1741495846492,-1000.0,0.00051152,10]
[355712517,1741495846502,-1008.07289737,0.00051152,10]
[355712518,1741495846512,-1000.0,0.00051152,10]
[355712519,1741495846522,-1000.0,0.00051152,10]
[355712520,1741495846532,-1000.0,0.00051152,10]
[355712521,1741495846542,-773.29776924,0.00051152,10]
[355712522,1741495846551,-1005.7871946,0.00051152,10]
[355712523,1741495846561,-501.90902063,0.00051152,10]
[355712524,1741495846571,-1001.91163449,0.00051152,2]
[355712525,1741495846580,-498.5000009,0.00051152,10]
[355712526,1741495846590,-1000.0,0.00051152,10]
[355712527,1741495846599,-505.86348928,0.00051152,10]
[355712528,1741495846609,-1000.0,0.00051152,10]
[355712529,1741495846619,-1001.44951117,0.00051152,2]
[355712530,1741495846628,-1000.0,0.00051152,10]
[355712531,1741495846638,-1003.99695533,0.00051152,10]
[355712532,1741495846647,-292.19051,0.000512,120]
[355712534,1741495846658,-5370.75082717,0.00051205,120]
[355712536,1741495846668,-167.900701,0.00051249,2]
[355712537,1741495846678,-324.2,0.00051269,30]
[355712539,1741495846688,-369.35778248,0.00051408,120]
[355712540,1741495846698,-154.86,0.000515,51]
[355712541,1741495846707,-154.86,0.000515,51]
[355712542,1741495846717,-154.86,0.000515,51]
[355712543,1741495846726,-154.86,0.000515,51]
[355712544,1741495846736,-250.0,0.00051712,10]
[355712545,1741495846746,-20000.0,0.00052,30]
[355712546,1741495846755,-1015.0,0.00052,120]
[355712547,1741495846765,-1296.0,0.00052,120]
[355712548,1741495846774,-814.0,0.00052,120]
[355712549,1741495846784,-200.0,0.00052048,120]
[355712550,1741495846794,-243.807185,0.00052048,120]
[355712551,1741495846803,-243.80718,0.00052048,120]
[355712552,1741495846813,-167.900701,0.00052348,2]
[355712553,1741495846926,-157.0,0.000525,120]
[355712554,1741495846936,-300.0,0.000525,28]
[355712555,1741495846946,-700.0,0.00052502,60]
[355712556,1741495846957,-500.0,0.0005251,60]
[355712557,1741495846967,-500.0,0.00052515,60]
[355712558,1741495846977,-324.2,0.00052639,30]
[355712559,1741495846987,-151.0,0.00052639,120]
[355712560,1741495846997,-500.0,0.00052669,60]
[355712561,1741495847007,-185.427371,0.00052729,120]
[355712562,1741495847018,-185.427371,0.00052729,120]
[355712563,1741495847028,-500.0,0.00052759,60]
[355712564,1741495847038,-700.0,0.00052767,60]
[355712565,1741495847047,-700.0,0.00052791,60]
[355712566,1741495847058,-700.0,0.00052817,60]
[355712567,1741495847068,-500.0,0.00052828,60]
[355712568,1741495847077,-500.0,0.00052886,60]
[355712569,1741495847086,-4142.35661518,0.00052898,120]
[355712570,1741495847095,-1872.61571,0.00052898,120]
[355712571,1741495847105,-1872.61571,0.00052898,120]
[355712572,1741495847115,-539.903212,0.00052898,120]
[355712573,1741495847125,-539.903212,0.00052898,120]
[355712574,1741495847135,-200.0,0.00052941,120]
[355712575,1741495847145,-160.0,0.00052943,6]
[355712576,1741495847155,-20000.0,0.00053,30]
[355712577,1741495847166,-503.5,0.00053,2]
[355712578,1741495847177,-243.315573,0.00053,120]
[355712579,1741495847187,-243.315573,0.00053,120]
[355712580,1741495847199,-151.0,0.00053,120]
[355712581,1741495847208,-200.0,0.00053078,120]
[355712582,1741495847219,-609.19949979,0.0005309,2]
[355712583,1741495847228,-150.0,0.000531,14]
[355712584,1741495847239,-151.29671503,0.000531,14]
[355712585,1741495847248,-700.0,0.00053103,60]
[355712586,1741495847258,-700.0,0.00053239,60]
[355712587,1741495847267,-200.0,0.00053258,120]
[355712588,1741495847278,-700.0,0.00053281,60]
[355712589,1741495847288,-700.0,0.00053316,60]
[355712590,1741495847297,-300.0,0.0005333,14]
[355712591,1741495847305,-700.0,0.00053351,60]
[355712592,1741495847313,-2410.72,0.000534,30]
[355712593,1741495847323,-500.0,0.00053695,60]
[355712594,1741495847333,-200.0,0.00053841,120]
[355712595,1741495847343,-4142.35661518,0.00053898,120]
[355712596,1741495847353,-4142.35661518,0.00053898,120]
[355712597,1741495847363,-4142.35661518,0.00053898,120]
[355712598,1741495847372,-151.0,0.00053898,120]
[355712599,1741495847383,-154.86,0.000539,54]
[355712600,1741495847392,-154.86,0.000539,54]
[355712601,1741495847402,-154.86,0.000539,54]
[355712602,1741495847412,-154.86,0.000539,54]
[355712603,1741495847423,-700.0,0.00053923,60]
[355712604,1741495847432,-20000.0,0.00054,60]
[355712605,1741495847443,-3000.0,0.00054,120]
[355712606,1741495847452,-1000.0,0.00054,120]
[355712607,1741495847462,-28389.37551873,0.00054,30]
[355712608,1741495847472,-1296.0,0.00054,120]
[355712609,1741495847482,-300.0,0.00054,29]
[355712610,1741495847491,-814.0,0.00054,120]
[355712611,1741495847501,-324.2,0.00054009,30]
[355712612,1741495847511,-200.0,0.00054101,120]
[355712613,1741495847520,-500.0,0.00054108,60]
[355712614,1741495847530,-700.0,0.00054263,60]
[355712615,1741495847539,-500.0,0.00054395,60]
[355712616,1741495847549,-500.0,0.00054419,60]
[355712617,1741495847559,-200.0,0.00054424,120]
[355712618,1741495847568,-350.0,0.00054452,10]
[355712619,1741495847577,-12783.44177338,0.000545,120]
[355712620,1741495847587,-4188.68762745,0.000545,120]
[355712621,1741495847596,-185.427371,0.000545,120]
[355712622,1741495847606,-185.427364,0.000545,120]
[355712623,1741495847615,-500.0,0.000545,60]
[355712624,1741495847625,-700.0,0.00054505,60]
[355712625,1741495847634,-500.0,0.00054545,60]
[355712626,1741495847644,-500.0,0.00054559,60]
[355712627,1741495847654,-700.0,0.00054619,60]
[355712628,1741495847664,-700.0,0.00054622,60]
[355712629,1741495847674,-700.0,0.00054636,60]
[355712630,1741495847683,-200.0,0.00054682,120]
[355712631,1741495847693,-1872.61571,0.00054685,120]
[355712632,1741495847702,-1872.615708,0.00054685,120]
[355712633,1741495847712,-539.903212,0.00054685,120]
[355712634,1741495847721,-539.90321,0.00054685,120]
[355712635,1741495847731,-3734.70837952,0.00054689,28]
[355712636,1741495847741,-200.0,0.00054745,120]
[355712637,1741495847750,-1023.5866133,0.00054783,13]
[355712638,1741495847759,-500.0,0.00054794,120]
[355712639,1741495847769,-500.0,0.00054794,30]
[355712640,1741495847778,-500.0,0.00054794,120]
[355712641,1741495847787,-500.0,0.00054794,120]
[355712642,1741495847796,-944.84,0.00054794,120]
[355712643,1741495847805,-500.0,0.00054794,120]
[355712644,1741495847815,-500.0,0.00054794,120]
[355712645,1741495847824,-223.36856463,0.00054794,120]
[355712646,1741495847834,-243.315573,0.00054794,120]
[355712647,1741495847843,-243.315573,0.00054794,120]
[355712648,1741495847852,-538.64797853,0.00054794,120]
[355712649,1741495847862,-513.63804516,0.00054794,120]
[355712650,1741495847871,-500.0,0.00054794,120]
[355712651,1741495847881,-502.43577232,0.00054794,120]
[355712652,1741495847891,-518.61940374,0.00054794,120]
[355712653,1741495847900,-507.69255298,0.00054794,120]
[355712654,1741495847910,-500.0,0.00054794,120]
[355712655,1741495847920,-510.44290162,0.00054794,120]
[355712656,1741495847929,-151.0,0.00054794,120]
[355712657,1741495847938,-500.0,0.00054794,120]
[355712658,1741495847948,-507.81250523,0.00054794,120]
[355712659,1741495847957,-500.97322393,0.00054794,120]
[355712660,1741495847967,-500.0,0.00054794,120]
[355712661,1741495847977,-511.9,0.00054794,120]
[355712662,1741495847986,-511.9,0.00054794,120]
[355712663,1741495847996,-511.9,0.00054794,120]
[355712664,1741495848005,-511.9,0.00054794,120]
[355712665,1741495848015,-511.9,0.00054794,120]
[355712666,1741495848024,-511.9,0.00054794,120]
[355712667,1741495848034,-511.9,0.00054794,120]
[355712668,1741495848044,-511.9,0.00054794,120]
[355712669,1741495848054,-511.9,0.00054794,120]
[355712670,1741495848063,-511.9,0.00054794,120]
[355712671,1741495848072,-666.0,0.00054794,120]
[355712672,1741495848082,-511.9,0.00054794,120]
[355712673,1741495848092,-511.9,0.00054794,120]
[355712674,1741495848102,-511.9,0.00054794,120]
[355712675,1741495848111,-511.9,0.00054794,120]
[355712676,1741495848120,-511.9,0.00054794,120]
[355712677,1741495848130,-511.9,0.00054794,120]
[355712678,1741495848139,-511.9,0.00054794,120]
[355712679,1741495848149,-511.9,0.00054794,120]
[355712680,1741495848158,-511.9,0.00054794,120]
[355712681,1741495848167,-511.9,0.00054794,120]
[355712682,1741495848177,-511.9,0.00054794,120]
[355712683,1741495848186,-511.9,0.00054794,120]
[355712684,1741495848198,-511.9,0.00054794,120]
[355712685,1741495848208,-511.9,0.00054794,120]
[355712686,1741495848217,-497.16,0.00054794,2]
[355712687,1741495848227,-500.0,0.00054794,120]
[355712688,1741495848236,-500.0,0.00054794,120]
[355712689,1741495848246,-500.93878184,0.00054794,120]
[355712690,1741495848255,-502.67706329,0.00054794,120]
[355712691,1741495848264,-500.0,0.00054794,120]
[355712692,1741495848275,-500.0,0.00054794,120]
[355712693,1741495848284,-500.0,0.00054794,120]
[355712694,1741495848293,-500.0,0.00054794,120]
[355712695,1741495848303,-500.0,0.00054794,120]
[355712696,1741495848313,-1001.61763346,0.00054794,5]
[355712697,1741495848322,-500.0,0.00054794,120]
[355712698,1741495848332,-500.0,0.00054794,120]
[355712699,1741495848341,-500.0,0.00054794,120]
[355712700,1741495848351,-705.23,0.00054794,120]
[355712701,1741495848362,-159.70551877,0.00054794,120]
[355712702,1741495848372,-500.0,0.00054794,120]
[355712703,1741495848381,-152.95093923,0.00054794,120]
[355712704,1741495848391,-500.0,0.00054794,120]
[355712705,1741495848400,-500.0,0.00054794,120]
[355712706,1741495848410,-218.48688246,0.00054794,120]
[355712707,1741495848420,-500.0,0.00054794,120]
[355712708,1741495848430,-500.0,0.00054794,120]
[355712709,1741495848440,-1651.32,0.00054794,120]
[355712710,1741495848450,-265.87641343,0.00054794,120]
[355712711,1741495848459,-500.0,0.00054794,120]
[355712712,1741495848469,-518.39793148,0.00054794,120]
[355712713,1741495848479,-559.09844291,0.00054794,120]
[355712714,1741495848488,-411.31365342,0.00054794,120]
[355712715,1741495848498,-500.0,0.00054794,120]
[355712716,1741495848507,-569.97452209,0.00054794,120]
[355712717,1741495848517,-500.0,0.00054794,120]
[355712718,1741495848527,-500.0,0.00054794,120]
[355712719,1741495848537,-500.0,0.00054794,120]
[355712720,1741495848547,-500.0,0.00054794,2]
[355712721,1741495848556,-830.43,0.00054794,120]
[355712722,1741495848565,-500.0,0.00054794,120]
[355712723,1741495848575,-572.32018013,0.00054794,120]
[355712724,1741495848585,-496.25954728,0.00054794,120]
[355712725,1741495848595,-500.0,0.00054794,120]
[355712726,1741495848604,-500.0,0.00054794,120]
[355712727,1741495848614,-387.09231637,0.00054794,120]
[355712728,1741495848624,-500.0,0.00054794,120]
[355712729,1741495848634,-5932.19,0.00054794,7]
[355712730,1741495848726,-500.0,0.00054794,120]
[355712731,1741495848737,-500.0,0.00054794,120]
[355712732,1741495848748,-5676.58,0.00054794,120]
[355712733,1741495848757,-203.50661634,0.00054794,120]
[355712734,1741495848767,-500.0,0.00054794,30]
[355712735,1741495848776,-500.0,0.00054794,120]
[355712736,1741495848786,-500.0,0.00054794,120]
[355712737,1741495848796,-530.70964753,0.00054794,120]
[355712738,1741495848806,-329.59079788,0.00054794,120]
[355712739,1741495848815,-204.30690082,0.00054794,120]
[355712740,1741495848824,-615.04165914,0.00054794,120]
[355712741,1741495848834,-500.0,0.00054794,120]
[355712742,1741495848845,-164.6713793,0.00054794,120]
[355712743,1741495848855,-505.31,0.00054794,120]
[355712744,1741495848864,-1010.55,0.00054794,120]
[355712745,1741495848874,-505.31,0.00054794,120]
[355712746,1741495848883,-505.31,0.00054794,120]
[355712747,1741495848893,-505.31,0.00054794,120]
[355712748,1741495848904,-505.31,0.00054794,120]
[355712749,1741495848913,-505.31,0.00054794,120]
[355712750,1741495848923,-505.31,0.00054794,120]
[355712751,1741495848934,-505.31,0.00054794,120]
[355712752,1741495848944,-505.31,0.00054794,120]
[355712753,1741495848955,-505.31,0.00054794,120]
[355712754,1741495848965,-505.31,0.00054794,120]
[355712755,1741495848975,-505.31,0.00054794,120]
[355712756,1741495848986,-505.31,0.00054794,120]
[355712757,1741495848996,-505.31,0.00054794,120]
[355712758,1741495849007,-505.31,0.00054794,120]
[355712759,1741495849016,-1000.0,0.00054794,7]
[355712760,1741495849027,-505.31,0.00054794,120]
[355712761,1741495849038,-505.31,0.00054794,120]
[355712762,1741495849048,-505.31,0.00054794,120]
[355712763,1741495849058,-505.31,0.00054794,120]
[355712764,1741495849068,-505.31,0.00054794,120]
[355712765,1741495849079,-505.31,0.00054794,120]
[355712766,1741495849089,-505.31,0.00054794,120]
[355712767,1741495849099,-505.31,0.00054794,120]
[355712768,1741495849109,-505.50969244,0.00054794,120]
[355712769,1741495849119,-2113.03,0.00054794,120]
[355712770,1741495849129,-500.0,0.00054794,120]
[355712771,1741495849139,-380.53199678,0.00054794,120]
[355712772,1741495849149,-534.48196412,0.00054794,120]
[355712773,1741495849159,-500.0,0.00054794,120]
[355712774,1741495849169,-452.39919511,0.00054794,120]
[355712775,1741495849178,-170.06396594,0.00054794,120]
[355712776,1741495849189,-500.0,0.00054794,120]
[355712777,1741495849204,-571.56550992,0.00054794,120]
[355712778,1741495849214,-321.64741785,0.00054794,120]
[355712779,1741495849223,-500.0,0.00054794,120]
[355712780,1741495849234,-567.67873035,0.00054794,120]
[355712781,1741495849246,-183.96135551,0.00054794,120]
[355712782,1741495849256,-167.95141565,0.00054794,120]
[355712783,1741495849266,-522.78572062,0.00054794,120]
[355712784,1741495849277,-186.94977553,0.00054794,120]
[355712785,1741495849287,-171.07585759,0.00054794,120]
[355712786,1741495849296,-166.55761875,0.00054794,120]
[355712787,1741495849306,-516.40512638,0.00054794,120]
[355712788,1741495849316,-190.23259897,0.00054794,120]
[355712789,1741495849326,-500.0,0.00054794,120]
[355712790,1741495849336,-500.0,0.00054794,120]
[355712791,1741495849346,-500.0,0.00054794,120]
[355712792,1741495849356,-500.0,0.00054794,120]
[355712793,1741495849365,-500.0,0.00054794,120]
[355712794,1741495849375,-165.27818682,0.00054794,120]